bitfinex-derivatives/quotes_BNBF0:USTF0_20250709
["timestamp","ask_amount","ask_price","bid_price","bid_amount"]
[1752071829261,1.68579251,660.73,659.71,4.12983484]
[1752071829465,1.68579251,660.71,659.71,2.435]
[1752071829664,1.68579251,660.72,659.71,4.12983484]
[1752071830266,1.68579251,660.7,659.71,4.12983484]
[1752071830465,1.68579251,660.73,659.74,1.69483484]
[1752071831164,1.68579251,660.73,659.75,1.69483484]
[1752071831366,1.68579251,660.72,659.76,1.69483484]
[1752071832270,1.68579251,660.71,659.77,1.69483484]
[1752071832471,1.68579251,660.7,659.79,1.69483484]
[1752071833274,1.68579251,660.7,659.8,1.69483484]
[1752071833474,5.56980791,662.07,659.84,1.69483484]
[1752071833475,1.68579251,660.67,659.84,1.69483484]
[1752071834176,1.68579251,660.66,659.85,1.69483484]
[1752071834773,1.68579251,660.66,659.86,1.69483484]
[1752071834985,2.22343902,660.85,659.71,2.435]
[1752071835179,1.68799234,660.65,659.86,1.69723767]
[1752071835775,1.68799234,660.66,659.86,1.69723767]
[1752071836676,1.68799234,660.66,659.85,1.69723767]
[1752071837280,1.68799234,660.65,659.86,1.69723767]
[1752071837981,5.56980791,661.87,659.71,2.435]
[1752071837982,1.68799234,660.6,659.94,1.69723767]
[1752071838181,1.68799234,660.59,659.94,1.69723767]
[1752071839379,1.68799234,660.59,659.95,1.69723767]
[1752071840281,1.68799234,660.58,659.96,1.69723767]
[1752071841890,1.68799234,660.59,659.97,1.69723767]
[1752071842093,1.68799234,660.58,659.96,1.69723767]
[1752071842984,1.68799234,660.59,659.95,1.69723767]
[1752071843281,1.68799234,660.59,659.8,2.23231626]
[1752071843282,1.68799234,660.59,659.96,1.69723767]
[1752071844383,1.68799234,660.59,659.95,1.69723767]
[1752071845286,1.68799234,660.58,659.96,1.69723767]
[1752071845686,1.68799234,660.58,659.97,1.69723767]
[1752071845983,1.68799234,660.56,660.0,1.69723767]
[1752071846187,1.68799234,660.55,660.0,1.69723767]
[1752071846487,1.68799234,660.55,660.01,1.69723767]
[1752071846984,1.68799234,660.54,660.02,1.69723767]
[1752071847183,5.56980791,661.35,660.03,1.69723767]
[1752071847184,1.68799234,660.53,660.03,1.69723767]
[1752071847387,5.56980791,661.35,659.71,2.435]
[1752071847388,1.68799234,660.54,660.01,1.69723767]
[1752071848287,1.68799234,660.54,660.02,1.69723767]
[1752071848990,1.68799234,660.54,659.88,2.23231626]
[1752071848991,1.68799234,660.54,660.01,1.69723767]
[1752071849289,1.68799234,660.53,660.02,1.69723767]
[1752071850390,1.68799234,660.52,660.03,1.69723767]
[1752071850786,1.68799234,660.53,660.03,1.69723767]
[1752071851286,1.68799234,660.53,659.71,2.435]
[1752071851287,1.68799234,660.52,660.04,1.69723767]
[1752071853490,1.68799234,660.42,659.97,1.69723767]
[1752071853692,1.68799234,660.42,659.96,1.69723767]
[1752071855893,1.68799234,660.41,659.97,1.69723767]
[1752071856392,1.68799234,660.42,659.97,1.69723767]
[1752071857090,1.68799234,660.44,659.93,1.69723767]
[1752071857690,1.68799234,660.46,659.95,1.69723767]
[1752071857888,1.68799234,660.47,659.95,1.69723767]
[1752071858892,1.68799234,660.49,659.98,1.69723767]
[1752071859490,1.68799234,660.51,660.0,1.69723767]
[1752071859793,1.68799234,660.53,660.01,1.69723767]
[1752071860394,1.68799234,660.53,660.02,1.69723767]
[1752071860993,1.68799234,660.54,660.01,1.69723767]
[1752071862490,7.79773107,661.66,660.02,1.69723767]
[1752071862491,1.68799234,660.52,660.02,1.69723767]
[1752071863288,1.68799234,660.53,660.02,1.69723767]
[1752071863490,1.68799234,660.52,660.02,1.69723767]
[1752071863688,1.68799234,660.55,659.99,1.69723767]
[1752071864295,1.68799234,660.58,659.94,1.69723767]
[1752071866195,1.69126909,660.58,659.94,1.70039745]
[1752071871392,1.69126909,660.57,659.96,1.70039745]
[1752071872395,1.69126909,660.51,660.04,1.70039745]
[1752071872998,1.69126909,660.52,660.04,1.70039745]
[1752071873397,1.69126909,660.51,660.04,1.70039745]
[1752071875098,1.69126909,660.51,660.05,1.70039745]
[1752071875499,1.69126909,660.51,660.04,1.70039745]
[1752071875895,2.22343902,660.63,659.93,2.23231626]
[1752071876195,1.6912321,660.51,660.05,1.70039166]
[1752071876395,1.6912321,660.51,660.06,1.70039166]
[1752071878493,1.6912321,660.5,660.06,1.70039166]
[1752071878696,1.6912321,660.61,659.92,1.70039166]
[1752071879199,1.6912321,660.7,660.01,1.70039166]
[1752071880001,1.6912321,660.71,660.02,1.70039166]
[1752071880301,1.6912321,660.7,660.03,1.70039166]
[1752071881701,1.69158261,660.7,660.03,1.70013333]
[1752071882202,1.69158261,660.7,660.04,1.70013333]
[1752071882403,1.69158261,660.7,660.03,1.70013333]
[1752071883203,1.69158261,660.71,660.04,3.71413333]
[1752071884404,1.69158261,660.72,660.04,3.71413333]
[1752071885100,7.79773107,662.21,660.07,1.70013333]
[1752071885101,1.69158261,660.74,660.07,1.70013333]
[1752071885501,1.69158261,660.74,660.08,1.70013333]
[1752071886205,1.69158261,660.74,660.07,1.70013333]
[1752071887305,1.69158261,660.74,660.04,2.014]
[1752071887306,1.69158261,660.74,660.06,1.70013333]
[1752071887606,1.69158261,660.7,660.12,1.70013333]
[1752071888204,1.69158261,660.7,660.13,1.70013333]
[1752071888407,1.69158261,660.71,660.12,1.70013333]
[1752071888808,1.69158261,660.7,660.13,1.70013333]
[1752071889410,1.69158261,660.71,660.12,1.70013333]
[1752071892305,1.69158261,660.72,660.12,1.70013333]
[1752071892511,1.69158261,660.77,660.17,1.70013333]
[1752071893008,1.69158261,660.81,660.21,1.70013333]
[1752071893207,1.69158261,660.8,660.21,1.70013333]
[1752071893411,1.69158261,660.8,660.23,1.70013333]
[1752071893710,1.69158261,660.78,660.21,1.70013333]
[1752071894208,1.69158261,660.79,660.2,1.70013333]
[1752071896107,1.69158261,660.79,660.19,1.70013333]
[1752071896309,1.69158261,660.8,660.19,1.70013333]
[1752071897212,1.69158261,660.8,660.18,1.70013333]
[1752071897809,1.69158261,660.81,660.18,1.70013333]
[1752071898412,1.69158261,660.81,660.17,1.70013333]
[1752071898814,1.69158261,660.8,660.19,1.70013333]
[1752071899009,1.69158261,660.8,660.18,1.70013333]
[1752071899510,1.69158261,660.81,660.18,1.70013333]
[1752071900313,1.69158261,660.81,660.17,1.70013333]
[1752071900610,1.69158261,660.81,660.04,2.014]
[1752071901310,1.69158261,660.84,660.04,2.014]
[1752071902316,1.69158261,660.83,660.04,2.014]
[1752071902517,1.69158261,660.84,660.04,2.014]
[1752071905322,1.69158261,660.83,660.04,2.014]
[1752071905623,1.69158261,660.84,660.04,2.014]
[1752071905822,1.69158261,660.83,660.04,2.014]
[1752071906726,1.69158261,660.81,660.04,2.014]
[1752071906925,1.69158261,660.77,660.04,2.014]
[1752071907621,1.69158261,660.75,660.04,2.014]
[1752071910323,1.69158261,660.74,660.04,2.014]
[1752071911021,1.69158261,660.7,660.04,2.014]
[1752071911628,2.22343902,660.84,660.04,2.014]
[1752071911629,1.69158261,660.69,660.04,2.014]
[1752071911924,5.56980791,661.57,660.04,2.014]
[1752071911925,1.69158261,660.74,660.04,2.014]
[1752071912225,1.69158261,660.73,660.04,2.014]
[1752071912429,1.69158261,660.74,660.04,2.014]
[1752071913326,1.69158261,660.73,660.04,2.014]
[1752071913529,2.22343902,660.92,660.04,2.014]
[1752071913530,1.69158261,660.74,660.04,2.014]
[1752071914431,1.69158261,660.72,660.04,2.014]
[1752071916534,1.69158261,660.71,660.04,2.014]
[1752071917338,1.69158261,660.7,660.04,2.014]
[1752071918637,2.22343902,660.87,660.04,2.014]
[1752071918836,1.68848938,660.7,660.04,2.014]
[1752071920337,1.68848938,660.7,659.98,1.69713401]
[1752071920941,1.68848938,660.74,660.0,1.69713401]
[1752071921138,1.68848938,660.75,660.11,1.69713401]
[1752071921643,1.68848938,660.94,660.06,1.69713401]
[1752071922239,1.68848938,661.13,660.23,1.69713401]
[1752071922639,1.68848938,661.13,660.24,1.69713401]
[1752071922839,1.68848938,661.14,660.23,1.69713401]
[1752071923045,1.68848938,661.09,660.18,1.69713401]
[1752071923341,1.68848938,661.09,660.16,1.69713401]
[1752071924439,1.68848938,661.1,660.17,1.789]
[1752071925441,1.68848938,661.11,660.17,1.789]
[1752071926246,1.68848938,661.09,660.17,1.789]
[1752071926841,1.68848938,661.14,660.19,1.69713401]
[1752071927345,1.68848938,661.15,660.18,1.69713401]
[1752071928241,1.68848938,661.15,660.17,3.48613401]
[1752071928445,1.68848938,661.15,660.18,1.69713401]
[1752071928942,1.68848938,661.1,660.25,1.69713401]
[1752071929245,1.68848938,661.09,660.26,1.69713401]
[1752071930341,1.68848938,661.1,660.25,1.69713401]
[1752071931444,1.68848938,661.1,660.17,1.789]
[1752071931445,1.68848938,661.06,660.29,1.69713401]
[1752071932350,1.68848938,661.07,660.28,1.69713401]
[1752071932650,1.68848938,660.99,660.2,1.69713401]
[1752071933147,1.68848938,660.98,660.2,1.69713401]
[1752071934350,1.68491755,660.98,660.2,1.69221819]
[1752071936546,1.68491755,660.97,660.19,1.69221819]
[1752071936948,1.68491755,660.95,660.19,1.69221819]
[1752071937848,1.68491755,660.91,660.17,1.789]
[1752071939352,1.68491755,660.9,660.17,1.789]
[1752071939753,1.68491755,660.91,660.17,1.789]
[1752071941852,7.79773107,661.93,660.17,1.789]
[1752071941853,1.68491755,660.92,660.17,1.789]
[1752071942755,1.68491755,660.9,660.17,1.789]
[1752071942956,1.68491755,660.83,660.17,1.789]
[1752071944257,1.68491755,660.84,660.17,1.789]
[1752071945657,1.68491755,660.83,660.17,1.789]
[1752071946759,1.68491755,660.88,660.17,1.789]
[1752071948257,1.68491755,660.89,660.17,1.789]
[1752071949262,1.68491755,660.88,660.17,1.789]
[1752071950560,1.68491755,660.86,660.17,1.789]
[1752071951161,1.68491755,660.87,660.17,1.789]
[1752071952164,1.68491755,660.86,660.17,1.789]
[1752071953869,1.68491755,660.85,660.17,1.789]
[1752071955065,1.68491755,660.87,660.17,1.789]
[1752071956265,1.68491755,660.86,660.17,1.789]
[1752071957170,1.68491755,660.87,660.17,1.789]
[1752071957465,7.79773107,662.0,660.17,1.789]
[1752071957466,1.68491755,660.81,660.17,1.789]
[1752071957668,1.68491755,660.82,660.17,1.789]
[1752071958170,1.68491755,660.81,660.17,1.789]
[1752071958368,1.68491755,660.82,660.0,1.69221819]
[1752071960774,1.68491755,660.76,659.94,1.69221819]
[1752071961168,1.68491755,660.74,659.97,1.69221819]
[1752071963073,1.68491755,660.75,659.97,1.69221819]
[1752071964977,1.68491755,660.74,659.97,1.69221819]
[1752071965477,1.68491755,660.77,659.95,1.882]
[1752071966072,1.68491755,660.78,659.95,1.882]
[1752071966273,1.68491755,660.77,659.95,3.57421819]
[1752071966491,1.68491755,660.78,659.95,3.57421819]
[1752071966673,1.68491755,660.77,659.95,3.57421819]
[1752071967378,1.68491755,660.77,659.98,1.69221819]
[1752071968277,1.68491755,660.77,659.99,1.69221819]
[1752071968573,1.68491755,660.78,659.99,1.69221819]
[1752071969777,1.68491755,660.82,660.04,1.69221819]
[1752071971674,1.68491755,660.81,660.03,1.69221819]
[1752071971878,1.68491755,660.8,660.04,1.69221819]
[1752071972079,1.68491755,660.79,660.06,1.69221819]
[1752071972379,1.68491755,660.89,659.97,1.69221819]
[1752071974178,1.68491755,660.89,659.98,1.69221819]
[1752071976280,1.68491755,660.88,659.98,1.69221819]
[1752071977084,1.68491755,660.89,659.98,1.69221819]
[1752071977282,1.68491755,660.88,659.98,1.69221819]
[1752071977582,1.68491755,660.89,659.98,1.69221819]
[1752071978185,1.68491755,660.88,659.98,1.69221819]
[1752071979286,1.68491755,660.88,659.99,1.69221819]
[1752071980488,1.68491755,660.9,660.02,1.69221819]
[1752071982390,1.68491755,660.83,660.13,1.69221819]
[1752071982590,1.68491755,660.84,660.11,1.69221819]
[1752071984591,1.68491755,660.84,660.1,1.69221819]
[1752071985092,1.68491755,660.85,660.12,1.69221819]
[1752071985387,1.68491755,660.86,660.11,1.69221819]
[1752071986289,1.68491755,660.86,660.12,1.69221819]
[1752071986491,1.68491755,660.85,660.13,1.69221819]
[1752071986790,1.68491755,660.84,660.14,1.69221819]
[1752071987189,3.33502549,661.13,659.95,1.882]
[1752071987190,1.68491755,660.87,660.17,1.69221819]
[1752071987392,1.68491755,660.92,660.24,1.69221819]
[1752071988395,1.68491755,660.92,660.25,1.69221819]
[1752071989195,1.68491755,660.91,660.25,1.69221819]
[1752071991201,1.68491755,660.9,660.26,1.69221819]
[1752071991601,7.79773107,662.05,660.27,1.69221819]
[1752071991602,1.68491755,660.89,660.27,1.69221819]
[1752071992302,1.68491755,660.88,660.29,1.69221819]
[1752071992499,1.68491755,660.88,660.3,1.69221819]
[1752071992701,1.68491755,660.89,660.29,1.69221819]
[1752071992998,1.68491755,660.89,660.3,1.69221819]
[1752071993201,1.68491755,660.89,660.16,2.23231626]
[1752071993202,1.68491755,660.9,660.31,1.69221819]
[1752071993700,1.68491755,660.97,660.38,1.69221819]
[1752071994306,1.68491755,660.98,660.37,1.69221819]
[1752071997509,1.68491755,660.98,660.36,1.69221819]
[1752071998016,1.68491755,660.98,660.37,1.69221819]
[1752071998510,1.68491755,661.03,660.41,1.69221819]
[1752071998716,1.68491755,661.03,660.4,1.69221819]
[1752071999414,1.68491755,661.04,660.39,1.69221819]
[1752072001415,1.68491755,661.04,660.38,1.69221819]
[1752072001619,1.68491755,661.05,660.38,1.69221819]
[1752072002118,1.68491755,661.04,660.38,1.69221819]
[1752072002419,1.68491755,661.04,660.11,3.34847439]
[1752072002420,1.68491755,661.05,660.37,1.69221819]
[1752072003516,1.68491755,661.05,660.36,1.69221819]
[1752072003820,1.68491755,661.04,660.38,1.69221819]
[1752072004020,1.68491755,661.11,660.28,1.69221819]
[1752072004320,1.68491755,661.11,660.1,2.23231626]
[1752072004321,1.68491755,661.11,660.27,1.69221819]
[1752072006321,1.68491755,661.12,660.27,1.69221819]
[1752072006524,1.68491755,661.12,660.26,1.69221819]
[1752072007524,1.68491755,661.13,660.25,1.69221819]
[1752072007821,1.68491755,661.12,660.25,1.69221819]
[1752072008223,1.68491755,661.13,660.25,1.69221819]
[1752072009225,2.22343902,661.32,660.07,2.23231626]
[1752072009531,1.68610739,661.16,660.22,1.69323544]
[1752072009722,1.68610739,661.15,660.21,1.69323544]
[1752072010427,1.68610739,661.16,660.21,1.69323544]
[1752072011322,1.68610739,661.16,660.2,1.69323544]
[1752072012627,1.68610739,661.18,660.17,1.69323544]
[1752072012824,1.68610739,661.15,660.2,1.69323544]
[1752072013327,1.68610739,661.15,660.21,2.364]
[1752072013525,1.68610739,661.16,660.21,2.364]
[1752072014028,1.68610739,661.12,660.21,2.364]
[1752072014224,1.68610739,661.1,660.21,2.364]
[1752072016827,7.79773107,662.67,660.21,2.364]
[1752072016828,1.68610739,661.22,660.21,2.364]
[1752072018930,1.68610739,661.21,660.21,2.364]
[1752072019131,1.68610739,661.28,660.21,2.364]
[1752072025130,1.68610739,661.29,660.21,2.364]
[1752072025334,1.68610739,661.28,660.21,2.364]
[1752072026433,1.68610739,661.27,660.21,2.364]
[1752072026629,1.68610739,661.18,660.22,1.69323544]
[1752072026833,1.68610739,661.17,660.24,1.69323544]
[1752072027233,1.68610739,661.15,660.27,1.69323544]
[1752072027434,1.68610739,661.14,660.3,1.69323544]
[1752072027734,1.68610739,661.11,660.33,1.69323544]
[1752072027931,1.68610739,661.1,660.35,1.69323544]
[1752072028631,1.68610739,661.09,660.38,1.69323544]
[1752072029332,1.68610739,661.08,660.38,1.69323544]
[1752072029530,1.68610739,661.09,660.39,1.69323544]
[1752072029932,1.68610739,661.15,660.31,1.69323544]
[1752072030528,1.68610739,661.15,660.32,1.69323544]
[1752072032935,1.68610739,661.19,660.36,1.69323544]
[1752072034532,1.68610739,661.22,660.4,1.69323544]
[1752072035237,1.68610739,661.3,660.47,1.69323544]
[1752072035632,1.68610739,661.31,660.47,1.69323544]
[1752072037035,1.68610739,661.32,660.48,1.69323544]
[1752072037743,1.68610739,661.34,660.49,1.69323544]
[1752072038238,1.68610739,661.33,660.49,1.69323544]
[1752072038435,1.68610739,661.34,660.49,1.69323544]
[1752072039037,1.68610739,661.33,660.5,1.69323544]
[1752072039238,1.68610739,661.33,660.49,1.69323544]
[1752072040038,1.68610739,661.32,660.5,1.69323544]
[1752072040839,1.68610739,661.4,660.39,1.69323544]
[1752072041143,1.68610739,661.41,660.58,1.69323544]
[1752072041341,1.68610739,661.41,660.57,1.69323544]
[1752072041842,1.68610739,661.41,660.4,2.23231626]
[1752072041843,1.68610739,661.4,660.6,1.69323544]
[1752072042339,1.68610739,661.4,660.29,3.34847439]
[1752072042340,1.68610739,661.4,660.59,1.69323544]
[1752072042944,1.68610739,661.32,660.51,1.69323544]
[1752072043139,2.22343902,661.47,660.36,2.23231626]
[1752072043342,1.6861716,661.31,660.52,1.69225175]
[1752072043542,1.6861716,661.32,660.51,1.69225175]
[1752072044444,1.6861716,661.31,660.51,1.69225175]
[1752072045244,1.6861716,661.31,660.52,1.69225175]
[1752072045548,1.6861716,661.3,660.54,1.69225175]
[1752072047348,1.6861716,661.29,660.55,1.69225175]
[1752072047544,1.6861716,661.29,660.54,1.69225175]
[1752072048251,1.6861716,661.29,660.55,2.266]
[1752072049348,1.6861716,661.29,660.55,3.95825175]
[1752072049546,1.6861716,661.29,660.55,2.266]
[1752072049947,1.6861716,661.28,660.56,1.69225175]
[1752072050247,1.6861716,661.28,660.57,1.69225175]
[1752072050546,1.6861716,661.27,660.56,1.69225175]
[1752072050747,1.6861716,661.28,660.55,3.95825175]
[1752072050949,1.6861716,661.33,660.6,1.69225175]
[1752072051250,1.6861716,661.32,660.57,1.69225175]
[1752072051444,1.6861716,661.26,660.55,2.266]
[1752072051648,1.6861716,661.25,660.55,2.266]
[1752072051850,1.6861716,661.52,660.55,2.266]
[1752072052247,1.6861716,661.47,660.55,2.266]
[1752072053446,1.6861716,661.4,660.59,1.69225175]
[1752072054048,1.6861716,661.38,660.63,1.69225175]
[1752072054546,1.6861716,661.38,660.62,1.69225175]
[1752072055448,1.6861716,661.39,660.61,1.69225175]
[1752072055848,1.6861716,661.37,660.63,1.69225175]
[1752072056249,1.6861716,661.39,660.6,1.69225175]
[1752072056548,1.6861716,661.4,660.6,1.69225175]
[1752072056748,1.6861716,661.4,660.59,1.69225175]
[1752072056948,1.6861716,661.41,660.6,1.69225175]
[1752072057653,1.6861716,661.47,660.55,2.266]
[1752072057953,1.6861716,661.46,660.55,2.266]
[1752072058650,1.6861716,661.42,660.57,1.69225175]
[1752072058855,1.6861716,661.41,660.57,1.69225175]
[1752072059055,1.6861716,661.43,660.55,3.95825175]
[1752072059452,1.6861716,661.48,660.55,2.266]
[1752072059752,1.6861716,661.47,660.55,2.266]
[1752072060651,1.6861716,661.38,660.62,1.69225175]
[1752072061455,1.6861716,661.39,660.62,1.69225175]
[1752072061653,1.6861716,661.38,660.62,1.69225175]
[1752072062057,1.6861716,661.39,660.63,1.69225175]
[1752072062351,1.6861716,661.39,660.62,1.69225175]
[1752072062556,1.6861716,661.39,660.63,1.69225175]
[1752072062752,1.6861716,661.39,660.62,1.69225175]
[1752072063055,1.6861716,661.4,660.61,1.69225175]
[1752072064453,1.6861716,661.4,660.62,1.69225175]
[1752072064656,1.6861716,661.4,660.61,1.69225175]
[1752072065860,1.6861716,661.41,660.62,1.69225175]
[1752072066358,1.6861716,661.41,660.61,1.69225175]
[1752072066658,1.6861716,661.41,660.62,1.69225175]
[1752072066862,1.6861716,661.59,660.62,1.622]
[1752072067064,1.6861716,661.58,660.62,1.622]
[1752072067358,1.6861716,661.57,660.62,1.622]
[1752072068358,1.6861716,661.56,660.62,1.622]
[1752072069758,1.6861716,661.57,660.62,1.622]
[1752072073260,1.6861716,661.56,660.62,1.622]
[1752072073763,1.6861716,661.54,660.62,1.622]
[1752072074264,1.6861716,661.51,660.62,1.622]
[1752072074466,1.6861716,661.43,660.62,1.622]
[1752072075469,1.6861716,661.42,660.62,1.622]
[1752072075766,1.6861716,661.35,660.62,1.622]
[1752072076768,1.6861716,661.34,660.62,1.622]
[1752072077166,1.6861716,661.31,660.62,1.622]
[1752072077767,1.6861716,661.3,660.62,1.622]
[1752072077970,1.6861716,661.28,660.62,1.622]
[1752072078364,1.6861716,661.27,660.62,1.622]
[1752072081471,1.6861716,661.26,660.62,1.622]
[1752072082974,1.6861716,661.25,660.62,1.622]
[1752072083273,1.6861716,661.24,660.62,1.622]
[1752072083473,1.6861716,661.23,660.62,1.622]
[1752072084373,1.6861716,661.22,660.62,1.622]
[1752072085473,1.6861716,661.31,660.62,1.622]
[1752072086268,1.6861716,661.37,660.62,1.622]
[1752072088474,1.6861716,661.36,660.62,1.622]
[1752072089175,1.6861716,661.34,660.62,1.622]
[1752072089775,1.6861716,661.25,660.65,1.69225175]
[1752072089974,1.6861716,661.24,660.65,1.69225175]
[1752072090377,1.6861716,661.23,660.65,1.69225175]
[1752072090577,1.6861716,661.22,660.64,1.69225175]
[1752072091373,1.6861716,661.21,660.65,1.69225175]
[1752072092273,1.6861716,661.2,660.66,1.69225175]
[1752072093279,1.6861716,661.2,660.67,1.69225175]
[1752072094279,1.6861716,661.19,660.68,1.69225175]
[1752072095477,1.6861716,661.19,660.69,1.69225175]
[1752072095776,1.6861716,661.21,660.66,1.69225175]
[1752072096280,1.6861716,661.26,660.62,1.622]
[1752072096476,1.6861716,661.27,660.62,1.622]
[1752072099882,1.6861716,661.26,660.62,1.622]
[1752072101483,1.6861716,661.22,660.62,1.622]
[1752072102683,1.6861716,661.23,660.62,1.622]
[1752072104587,1.6861716,661.22,660.62,1.622]
[1752072104781,1.6861716,661.17,660.62,3.31425175]
[1752072108189,1.6861716,661.17,660.63,1.69225175]
[1752072108388,1.6861716,661.17,660.62,3.31425175]
[1752072109187,1.6861716,661.17,660.63,1.69225175]
[1752072109389,1.6861716,661.17,660.62,3.31425175]
[1752072112592,1.6861716,661.17,660.63,1.69225175]
[1752072113187,1.6861716,661.16,660.63,1.69225175]
[1752072115893,1.6861716,661.15,660.64,1.69225175]
[1752072116591,1.6861716,661.15,660.65,1.69225175]
[1752072117288,1.6861716,661.14,660.65,1.69225175]
[1752072117794,1.6861716,661.15,660.65,1.69225175]
[1752072119292,1.6861716,661.14,660.65,1.69225175]
[1752072119895,1.6861716,661.19,660.59,1.69225175]
[1752072121390,1.6861716,661.18,660.59,1.69225175]
[1752072121792,1.6861716,661.19,660.58,1.69225175]
[1752072123594,1.6861716,661.19,660.59,2.213]
[1752072125393,1.6861716,661.18,660.59,2.213]
[1752072125698,1.6861716,661.19,660.59,2.213]
[1752072126298,1.6861716,661.18,660.59,2.213]
[1752072127497,1.6861716,661.17,660.59,2.213]
[1752072129605,1.6861716,661.15,660.61,1.69225175]
[1752072130406,1.6861716,661.17,660.63,1.69225175]
[1752072130708,1.6861716,661.24,660.59,2.213]
[1752072133310,1.6861716,661.23,660.59,2.213]
[1752072134306,1.6861716,661.22,660.59,2.213]
[1752072135313,1.6861716,661.23,660.59,2.213]
[1752072139315,1.6861716,661.26,660.59,2.213]
[1752072140015,1.6861716,661.19,660.68,1.69225175]
[1752072141117,1.6861716,661.2,660.68,1.69225175]
[1752072141413,1.6861716,661.2,660.67,1.69225175]
[1752072143116,1.6861716,661.17,660.72,1.69225175]
[1752072145715,1.6861716,661.17,660.71,1.69225175]
[1752072147515,1.6861716,661.17,660.72,1.69225175]
[1752072148017,1.6861716,661.18,660.72,1.69225175]
[1752072148320,1.6861716,661.19,660.71,1.69225175]
[1752072151228,1.6861716,661.18,660.72,1.69225175]
[1752072152936,1.6861716,661.19,660.71,1.69225175]
[1752072153927,1.69387327,661.19,660.71,1.69966484]
[1752072155128,1.69387327,661.18,660.71,1.69966484]
[1752072155526,1.69382583,661.18,660.71,1.69962052]
[1752072158233,1.69382583,661.17,660.73,1.69962052]
[1752072160435,1.69382583,661.17,660.74,1.658]
[1752072162535,1.69382583,661.15,660.76,1.69962052]
[1752072164035,1.69382583,661.16,660.75,1.69962052]
[1752072166334,1.69382583,661.17,660.74,1.658]
[1752072167038,1.69382583,661.17,660.74,3.35762052]
[1752072167335,1.69382583,661.19,660.74,1.658]
[1752072168845,1.69382583,661.16,660.74,1.658]
[1752072169237,1.69382583,661.15,660.74,1.658]
[1752072170337,1.69382583,661.16,660.74,1.658]
[1752072173846,1.69382583,661.19,660.74,1.658]
[1752072177048,1.69382583,661.18,660.74,1.658]
[1752072177246,1.69382583,661.19,660.74,1.658]
[1752072178648,1.69382583,661.2,660.74,1.658]
[1752072179152,1.69382583,661.19,660.74,1.658]
[1752072179553,1.69382583,661.2,660.74,1.658]
[1752072179951,1.69382583,661.19,660.74,1.658]
[1752072180649,1.69382583,661.19,660.63,1.69962052]
[1752072181850,5.56980791,662.2,660.66,1.69962052]
[1752072181851,1.69382583,661.22,660.66,1.69962052]
[1752072182956,1.69382583,661.22,660.67,1.69962052]
[1752072183256,1.69382583,661.21,660.67,1.69962052]
[1752072183552,1.69382583,661.21,660.68,3.61562052]
[1752072183758,1.69382583,661.21,660.68,1.916]
[1752072183955,1.69382583,661.27,660.73,1.69962052]
[1752072184761,3.33502549,661.6,660.68,1.916]
[1752072184762,1.69382583,661.28,660.74,1.69962052]
[1752072185054,1.69382583,661.2,660.68,1.916]
[1752072185257,1.69382583,661.19,660.68,1.916]
[1752072186058,1.69382583,661.21,660.68,1.916]
[1752072186758,1.69382583,661.22,660.68,1.916]
[1752072187755,1.69382583,661.19,660.68,3.61562052]
[1752072187954,1.69382583,661.33,660.82,1.69962052]
[1752072188155,1.69382583,661.33,660.83,1.69962052]
[1752072188353,1.69382583,661.34,660.82,1.69962052]
[1752072188955,1.69382583,661.33,660.84,1.69962052]
[1752072189358,1.69382583,661.34,660.83,1.69962052]
[1752072190360,1.69382583,661.34,660.82,1.69962052]
[1752072191460,1.69382583,661.35,660.82,1.69962052]
[1752072192260,1.69382583,661.35,660.68,4.14831626]
[1752072192261,1.69382583,661.36,660.81,1.69962052]
[1752072194462,1.69382583,661.37,660.8,1.69962052]
[1752072195364,1.69382583,661.37,660.79,1.69962052]
[1752072195966,1.69382583,661.35,660.82,1.69962052]
[1752072196162,1.69382583,661.36,660.82,1.69962052]
[1752072196763,1.69382583,661.36,660.83,1.69962052]
[1752072196966,1.69382583,661.31,660.79,1.69962052]
[1752072197266,1.69382583,661.3,660.78,1.69962052]
[1752072200370,1.69382583,661.3,660.77,1.69962052]
[1752072200666,1.69382583,661.31,660.77,1.69962052]
[1752072201866,1.69382583,661.31,660.76,1.69962052]
[1752072202565,1.69382583,661.32,660.75,1.69962052]
[1752072202765,1.69382583,661.26,660.71,1.69962052]
[1752072206073,1.69382583,661.26,660.7,1.69962052]
[1752072206871,1.69382583,661.27,660.68,1.69962052]
[1752072208676,5.56980791,662.14,660.67,1.69962052]
[1752072208677,1.69382583,661.28,660.67,1.69962052]
[1752072209578,1.69382583,661.28,660.68,1.884]
[1752072211373,1.69382583,661.28,660.68,3.58362052]
[1752072213076,1.69382583,661.29,660.68,1.884]
[1752072214279,1.69382583,661.28,660.68,1.884]
[1752072215082,1.69382583,661.29,660.68,1.884]